bitfinex/quotes_SOLUSD_20250429
["timestamp","ask_amount","ask_price","bid_price","bid_amount"]
[1745946891931,24.43666715,148.64,148.62,0.063]
[1745946893543,24.43666715,148.63,148.62,0.063]
[1745946897640,15.22243386,148.63,148.62,0.063]
[1745946902663,14.34,148.69,148.63,0.28432314]
[1745946902869,15.22243386,148.68,148.62,0.34732314]
[1745946903042,15.22243386,148.64,148.62,0.063]
[1745946903234,15.22243386,148.63,148.62,0.063]
[1745946904746,21.95055066,148.63,148.62,0.063]
[1745946905666,40.60019952,148.63,148.62,0.063]
[1745946906162,55.96479495,148.63,148.62,0.063]
[1745946906379,6.7294751,148.6,148.57,0.063]
[1745946906549,15.22243386,148.58,148.57,0.063]
[1745946906753,6.7294751,148.6,148.57,0.063]
[1745946906951,15.22243386,148.58,148.57,0.063]
[1745946910276,21.95281479,148.58,148.57,0.063]
[1745946910567,15.22243386,148.58,148.57,0.063]
[1745946911071,32.72941507,148.61,148.57,0.063]
[1745946911254,18.64964886,148.62,148.57,0.063]
[1745946911465,15.22243386,148.6,148.57,0.34732314]
[1745946911763,15.22243386,148.59,148.57,0.34732314]
[1745946911968,15.22243386,148.58,148.57,0.063]
[1745946914384,21.95281479,148.58,148.57,0.063]
[1745946914754,15.22243386,148.58,148.57,0.063]
[1745946917277,21.95281479,148.58,148.57,0.063]
[1745946918243,40.60246365,148.58,148.57,0.063]
[1745946918868,33.87208272,148.58,148.57,0.063]
[1745946919077,15.22243386,148.58,148.57,0.063]
[1745946921684,21.95281479,148.58,148.57,0.063]
[1745946922081,15.22243386,148.58,148.57,0.063]
[1745946922457,15.22243386,148.59,148.57,0.063]
[1745946922672,15.22243386,148.6,148.57,0.063]
[1745946923078,15.22243386,148.59,148.57,0.063]
[1745946927598,41.841,148.63,148.57,0.34732314]
[1745946927599,15.22243386,148.61,148.57,0.34732314]
[1745946927770,15.22243386,148.6,148.57,0.34732314]
[1745946928577,15.22243386,148.6,148.57,7.07801078]
[1745946928775,15.22243386,148.59,148.57,7.07801078]
[1745946929098,15.22243386,148.6,148.57,7.07801078]
[1745946929281,15.22243386,148.6,148.57,0.34732314]
[1745946931609,15.22243386,148.6,148.57,7.07811191]
[1745946931803,14.32,148.63,148.58,15.22243386]
[1745946932010,15.22243386,148.6,148.57,7.07811191]
[1745946932409,15.22243386,148.59,148.57,0.34732314]
[1745946932802,15.22243386,148.58,148.57,0.063]
[1745946934115,6.72941909,148.61,148.57,0.063]
[1745946934295,15.22243386,148.59,148.57,0.063]
[1745946934790,15.22243386,148.58,148.57,0.063]
[1745946935196,40.60246365,148.58,148.57,0.063]
[1745946935498,32.72766415,148.64,148.57,15.28543386]
[1745946935701,15.22243386,148.61,148.57,15.28543386]
[1745946936100,15.22243386,148.61,148.57,0.063]
[1745946937120,15.22243386,148.6,148.57,0.34732314]
[1745946937316,15.22243386,148.6,148.57,0.063]
[1745946937488,15.22243386,148.58,148.57,0.063]
[1745946938499,15.22243386,148.59,148.57,0.063]
[1745946940025,15.22243386,148.58,148.57,0.063]
[1745946940202,33.87208272,148.58,148.57,0.063]
[1745946941722,40.60246365,148.58,148.57,0.063]
[1745946941903,40.74462522,148.58,148.57,0.063]
[1745946945137,40.60246365,148.58,148.57,0.063]
[1745946945343,15.22243386,148.58,148.57,0.063]
[1745946947137,40.60246365,148.58,148.57,0.063]
[1745946948815,15.22243386,148.58,148.57,0.063]
[1745946949326,14.3,148.6,148.57,0.063]
[1745946949546,15.22243386,148.59,148.57,0.063]
[1745946950137,15.22243386,148.58,148.57,0.063]
[1745946950735,15.22243386,148.59,148.57,0.063]
[1745946951318,15.22243386,148.58,148.57,0.063]
[1745946953036,21.95281479,148.58,148.57,0.063]
[1745946954741,33.87208272,148.58,148.57,0.063]
[1745946955835,40.60246365,148.58,148.57,0.063]
[1745946956251,15.22243386,148.58,148.57,0.063]
[1745946957627,21.95281479,148.58,148.57,0.063]
[1745946958129,15.22243386,148.58,148.57,0.063]
[1745946959218,21.95281479,148.58,148.57,0.063]
[1745946959534,15.22243386,148.58,148.57,0.063]
[1745946961244,14.3,148.6,148.57,0.063]
[1745946961452,15.22243386,148.6,148.57,0.063]
[1745946961635,44.64964886,148.63,148.57,0.063]
[1745946961942,15.22243386,148.61,148.57,15.28543386]
[1745946962325,15.22243386,148.62,148.58,15.22243386]
[1745946963331,15.22243386,148.62,148.58,21.95272022]
[1745946963631,15.22243386,148.61,148.58,6.73028636]
[1745946963833,15.22243386,148.61,148.57,22.01609545]
[1745946964148,15.22243386,148.61,148.57,15.28543386]
[1745946965034,15.22243386,148.61,148.57,22.01624397]
[1745946965239,15.22243386,148.61,148.57,15.28543386]
[1745946966056,15.22243386,148.61,148.57,22.01622799]
[1745946966242,15.9484,148.64,148.58,15.506757]
[1745946966243,14.32,148.64,148.58,15.506757]
[1745946966568,15.22243386,148.63,148.59,15.22243386]
[1745946967659,15.22243386,148.62,148.58,0.28432314]
[1745946967827,15.22243386,148.59,148.57,0.34732314]
[1745946968456,15.22243386,148.6,148.57,0.34732314]
[1745946969064,15.22243386,148.6,148.57,15.569757]
[1745946969554,15.22243386,148.61,148.57,22.3005208]
[1745946969730,15.22243386,148.61,148.58,15.22243386]
[1745946969931,18.64964886,148.63,148.58,15.22243386]
[1745946970133,15.22243386,148.63,148.59,15.22243386]
[1745946970332,15.22243386,148.64,148.6,15.22243386]
[1745946970539,15.22243386,148.64,148.58,0.28432314]
[1745946970766,15.22243386,148.63,148.59,15.22243386]
[1745946970959,15.22243386,148.63,148.6,15.22243386]
[1745946971671,6.72815902,148.63,148.59,15.22243386]
[1745946971838,15.22243386,148.62,148.58,22.23688048]
[1745946972460,15.22243386,148.62,148.58,7.01444662]
[1745946972761,15.22243386,148.61,148.57,15.569757]
[1745946973286,6.72818804,148.63,148.58,15.22243386]
[1745946973287,15.22243386,148.62,148.58,15.22243386]
[1745946974542,6.72818804,148.63,148.58,15.22243386]
[1745946974949,15.22243386,148.62,148.58,15.22243386]
[1745946975345,15.22243386,148.62,148.58,21.95276983]
[1745946975545,15.22243386,148.63,148.59,15.22243386]
[1745946975765,32.72738347,148.65,148.59,21.95229465]
[1745946975941,15.22243386,148.64,148.6,15.22243386]
[1745946977263,21.95020187,148.64,148.6,15.22243386]
[1745946977644,15.22243386,148.64,148.6,21.95181982]
[1745946977836,15.22243386,148.64,148.6,15.22243386]
[1745946978039,15.22243386,148.63,148.6,0.28432314]
[1745946981273,15.22243386,148.66,148.62,15.506757]
[1745946981866,15.22243386,148.65,148.62,0.28432314]
[1745946983065,15.22243386,148.64,148.6,15.506757]
[1745946983261,15.22243386,148.63,148.6,0.14216157]
[1745946983978,15.22243386,148.64,148.6,22.23622969]
[1745946984472,15.22243386,148.64,148.6,15.506757]
[1745946984654,15.22243386,148.64,148.6,22.23606416]
[1745946985163,15.22243386,148.65,148.61,15.22243386]
[1745946985375,15.22243386,148.66,148.62,15.506757]
[1745946985544,15.22243386,148.67,148.63,15.22243386]
[1745946986373,15.22243386,148.67,148.63,21.95054616]
[1745946988154,15.25243386,148.68,148.64,15.506757]
[1745946988644,0.03,148.68,148.65,15.22243386]
[1745946988844,0.03,148.68,148.64,0.28432314]
[1745946988845,0.03,148.68,148.67,15.506757]
[1745946989268,0.03,148.68,148.67,17.27831857]
[1745946990081,0.03,148.68,148.67,24.00462515]
[1745946991870,0.03,148.68,148.67,0.28432314]
[1745946993058,0.03,148.68,148.67,22.23306358]
[1745946993369,0.03,148.68,148.67,15.506757]
[1745946993565,0.03,148.68,148.67,22.23306358]
[1745946993783,0.03,148.68,148.67,22.37522515]
[1745946994372,0.03,148.68,148.67,37.73982058]
[1745946996254,0.03,148.68,148.67,57.98396944]
[1745946997484,0.03,148.68,148.67,76.16826766]
[1745946998987,0.03,148.68,148.67,79.57371025]
[1745946999171,1e-08,148.68,148.67,162.07371025]
[1745947004194,1e-08,148.68,148.67,115.70403583]
[1745947004503,1e-08,148.68,148.67,141.27755112]
[1745947004672,1e-08,148.68,148.67,166.0186188]
[1745947004870,1e-08,148.68,148.67,115.41971269]
[1745947005099,1e-08,148.68,148.67,141.56187426]
[1745947005594,1e-08,148.68,148.67,115.70403583]
[1745947005762,1e-08,148.68,148.67,166.0186188]
[1745947006501,1e-08,148.68,148.67,184.66826766]
[1745947007697,1e-08,148.68,148.67,166.0186188]
[1745947008396,0.03,148.69,148.68,19.21829514]
[1745947008693,0.03,148.69,148.68,75.91768247]
[1745947009281,0.03,148.69,148.68,8.63886767]
[1745947009503,0.03,148.69,148.68,31.60908343]
[1745947009711,0.03,148.69,148.68,31.18259872]
[1745947010073,0.03,148.69,148.68,31.60908343]
[1745947012010,0.03,148.69,148.68,55.9236664]
[1745947012498,0.03,148.69,148.68,157.07331526]
[1745947012679,0.03,148.73,148.7,0.14216157]
[1745947012882,0.03,148.73,148.72,24.74106768]
[1745947013197,0.03,148.73,148.72,24.88322925]
[1745947013497,0.03,148.73,148.72,43.53287811]
[1745947013705,0.03,148.73,148.72,126.03287811]
[1745947013884,0.03,148.73,148.72,132.75692329]
[1745947014400,0.03,148.76,148.75,26.0]
[1745947014699,0.03,148.76,148.75,50.88322925]
[1745947015279,0.03,148.76,148.75,24.88322925]
[1745947016193,0.03,148.76,148.75,31.60591832]
[1745947016406,0.03,148.76,148.75,55.92050129]
[1745947016899,0.03,148.76,148.75,31.60591832]
[1745947018379,0.03,148.76,148.75,55.92050129]
[1745947018579,0.03,148.83,148.79,0.14216157]
[1745947018789,0.03,148.83,148.82,75.05565065]
[1745947019301,0.03,148.83,148.82,75.19781222]
[1745947019897,0.03,148.84,148.82,93.84746108]
[1745947020109,0.03,148.84,148.83,24.88322925]
[1745947020416,0.03,148.84,148.83,31.6023047]
[1745947022117,1e-08,148.84,148.83,31.6023047]
[1745947022517,38.57458297,148.94,148.83,100.64501946]
[1745947022811,32.40498297,148.95,148.87,0.56864628]
[1745947022990,8.0904,148.95,148.87,0.56864628]
[1745947023194,0.03,148.89,148.87,0.56864628]
[1745947023408,1.5636,148.95,148.89,0.14216157]
[1745947023611,32.19118297,148.99,148.9,0.28432314]
[1745947023813,7.8766,148.99,148.9,0.42648471]
[1745947024016,7.8766,148.99,148.92,0.56864628]
[1745947024526,0.9387189,149.0,148.98,24.59890611]
[1745947024698,0.9387189,149.0,148.99,24.59890611]
[1745947024893,0.9387189,149.0,148.99,0.28432314]
[1745947025099,0.9387189,149.0,148.99,24.59890611]
[1745947025495,0.9387189,149.0,148.99,24.74106768]
[1745947026019,0.9387189,149.0,148.99,24.88322925]
[1745947026201,0.9387189,149.0,148.99,43.53287811]
[1745947026403,10.47216599,149.06,149.0,0.56864628]
[1745947026615,10.47216599,149.06,149.05,24.31458297]
[1745947026998,6.70788679,149.08,149.05,24.31458297]
[1745947027198,24.31458297,149.06,149.01,14.22]
[1745947027398,24.31458297,149.06,149.02,24.31458297]
[1745947027813,24.31458297,149.04,149.0,24.31458297]
[1745947028200,24.31458297,149.05,149.01,24.31458297]
[1745947028536,24.31458297,149.03,148.99,24.31458297]
[1745947028835,31.02473718,149.03,148.99,24.31458297]
[1745947029000,6.71015421,149.03,148.99,24.31458297]
[1745947029325,31.02473718,149.03,148.99,24.31458297]
[1745947029638,6.70975475,149.04,149.01,24.31458297]
[1745947030150,31.02433772,149.04,148.98,0.42648471]
[1745947030351,24.31458297,149.02,148.98,0.28432314]
[1745947030511,24.31458297,149.0,148.95,0.14216157]
[1745947030860,24.31458297,148.97,148.93,24.31458297]
[1745947031026,24.31458297,148.97,148.92,24.31458297]
[1745947031527,24.31458297,148.97,148.93,24.31458297]
[1745947031833,26.0,149.0,148.94,24.31458297]
[1745947032035,6.71185985,148.99,148.94,0.14216157]
[1745947032204,24.31458297,148.98,148.94,24.45674454]
[1745947032402,24.31458297,148.99,148.95,24.31458297]
[1745947032627,32.7115276,149.0,148.95,24.31458297]
[1745947032931,24.31458297,148.98,148.95,0.14216157]
[1745947033313,24.31458297,148.97,148.91,0.42648471]
[1745947033638,24.31458297,148.95,148.91,24.31458297]
[1745947033823,24.31458297,148.94,148.9,38.51458297]
[1745947034024,24.31458297,148.95,148.91,24.31458297]
[1745947034406,24.31458297,148.94,148.9,14.2]
[1745947034633,24.31458297,148.94,148.9,24.31458297]
[1745947034965,24.31458297,148.94,148.89,6.85849439]
[1745947035167,24.31458297,148.93,148.89,24.31458297]
[1745947035532,26.0,148.97,148.92,24.31458297]
[1745947035733,24.31458297,148.96,148.92,24.31458297]
[1745947035936,24.31458297,148.97,148.93,24.31458297]
[1745947036546,24.31458297,148.98,148.94,24.31458297]
[1745947036755,24.31458297,148.98,148.93,6.99881937]
[1745947036961,24.31458297,148.96,148.91,0.28432314]
[1745947037268,24.31458297,148.96,148.92,24.31458297]
[1745947037468,24.31458297,148.97,148.93,24.31458297]
[1745947038032,24.31458297,148.96,148.91,6.71544351]
[1745947038239,24.31458297,148.96,148.92,24.59890611]
[1745947038645,6.71296702,148.97,148.93,24.31458297]
[1745947038646,24.31458297,148.97,148.93,24.31458297]
[1745947038938,24.31458297,148.96,148.92,24.59890611]
[1745947039280,44.64964886,149.01,148.94,24.31458297]
[1745947039430,24.31458297,149.0,148.96,24.31458297]
[1745947039966,20.6921,149.02,148.96,24.31458297]
[1745947040138,27.40278206,149.02,148.97,24.31458297]
[1745947040338,24.31458297,149.01,148.97,24.31458297]
[1745947040768,0.03,149.03,149.0,24.31458297]
[1745947040980,0.03,149.03,149.01,24.31458297]
[1745947041151,0.03,149.03,149.02,24.31458297]
[1745947041849,0.03,149.03,149.02,24.59890611]
[1745947042057,0.03,149.03,149.02,24.88322925]
[1745947042258,0.03,149.03,149.02,31.5937379]
[1745947042474,0.03,149.03,149.02,24.59890611]
[1745947045264,0.03,149.03,149.02,31.5937379]
[1745947045460,0.03,149.03,149.02,24.59890611]
[1745947045642,0.03,149.03,149.02,0.28432314]
[1745947045845,0.03,149.03,149.02,24.59890611]
[1745947046781,0.03,149.03,149.02,24.31458297]
[1745947047076,0.03,149.03,148.97,6.71258394]
[1745947047077,24.34458297,149.03,148.97,6.71258394]
[1745947047285,24.31458297,149.0,148.96,6.71305451]
[1745947047460,24.31458297,149.0,148.95,6.85565088]
[1745947047778,0.03,149.03,148.97,24.31458297]
[1745947047779,24.31458297,149.01,148.97,24.31458297]
[1745947048142,24.31458297,148.99,148.92,14.2]
[1745947048348,30.61078297,149.03,148.94,24.31458297]
[1745947048349,24.31458297,148.98,148.94,24.31458297]
[1745947049368,24.31458297,148.97,148.93,31.02914685]
[1745947049553,24.31458297,148.98,148.94,24.31458297]
[1745947051075,35.42593425,149.02,148.92,14.2]
[1745947051076,24.31458297,148.96,148.92,20.91484927]
[1745947051252,24.31458297,148.97,148.93,24.59890611]
[1745947051860,24.31458297,148.98,148.94,24.31458297]
[1745947052057,24.31458297,148.99,148.95,24.59890611]
[1745947052456,24.31458297,148.97,148.93,24.59890611]
[1745947052659,24.31458297,148.96,148.93,0.14216157]
[1745947052878,24.31458297,148.96,148.91,6.99962003]
[1745947052879,24.31458297,148.95,148.92,0.14216157]
[1745947053464,24.31458297,148.95,148.91,24.31458297]
[1745947053656,6.71185985,148.99,148.92,0.28432314]
[1745947053863,24.31458297,148.98,148.94,24.31458297]
[1745947054182,24.31458297,148.96,148.93,0.28432314]
[1745947054390,24.31458297,148.94,148.89,14.2]
[1745947054555,24.31458297,148.93,148.89,38.51458297]
[1745947055251,24.31458297,148.92,148.89,14.2]
[1745947055475,24.31458297,148.93,148.89,38.51458297]
[1745947055648,24.31458297,148.93,148.89,31.03089353]
[1745947055853,24.31458297,148.93,148.89,24.31458297]
[1745947056273,24.31458297,148.93,148.87,0.14216157]
[1745947056274,24.31458297,148.93,148.87,6.71695251]
[1745947056449,24.31458297,148.92,148.88,24.31458297]
[1745947057070,24.31458297,148.91,148.87,24.45674454]
[1745947057278,24.31458297,148.9,148.87,0.14216157]
[1745947057589,24.31458297,148.9,148.86,24.31458297]
[1745947057755,24.31458297,148.89,148.85,38.49458297]
[1745947057955,24.31458297,148.9,148.86,24.31458297]
[1745947058173,24.31458297,148.9,148.85,20.89807042]
[1745947058480,24.31458297,148.92,148.88,24.31458297]
[1745947059060,24.31458297,148.91,148.87,31.03169962]
[1745947059267,24.31458297,148.9,148.87,0.28432314]
[1745947059577,24.31458297,148.9,148.86,24.31458297]
[1745947060684,24.31458297,148.9,148.86,31.03221372]
[1745947061188,40.18,148.95,148.88,24.59890611]
[1745947061357,64.49458297,148.95,148.91,24.31458297]
[1745947061558,24.31458297,148.94,148.9,24.31458297]
[1745947061855,24.31458297,148.92,148.88,24.31458297]
[1745947062984,24.31458297,148.92,148.88,31.03131434]
[1745947063984,24.31458297,148.92,148.88,24.31458297]
[1745947064878,24.31458297,148.92,148.87,7.00141979]
[1745947065075,25.36376192,148.94,148.88,24.31458297]
[1745947065385,24.31458297,148.92,148.88,24.31458297]
[1745947066062,24.31458297,148.91,148.87,24.59890611]
[1745947066263,24.31458297,148.9,148.84,6.78143383]
[1745947066573,24.31458297,148.89,148.85,0.28432314]
[1745947066778,24.31458297,148.89,148.85,24.31458297]
[1745947067771,31.03093868,148.9,148.86,24.31458297]
[1745947068073,24.31458297,148.9,148.87,0.28432314]
[1745947068398,24.31458297,148.91,148.87,24.59890611]
[1745947068687,24.31458297,148.89,148.85,24.59890611]
[1745947068877,24.31458297,148.89,148.85,0.28432314]
[1745947069083,24.31458297,148.89,148.85,0.14216157]
[1745947069285,24.31458297,148.88,148.85,0.28432314]
[1745947069674,24.31458297,148.89,148.85,0.28432314]
[1745947069867,24.31458297,148.89,148.85,24.59890611]
[1745947070588,24.31458297,148.87,148.84,0.34732314]
[1745947070767,24.31458297,148.85,148.84,0.063]
[1745947070964,24.31458297,148.86,148.84,0.063]
[1745947072188,24.31458297,148.85,148.84,0.063]
[1745947073107,42.96423183,148.85,148.84,0.063]
[1745947073586,49.68240448,148.85,148.84,0.063]
[1745947074394,42.96423183,148.85,148.84,0.063]
[1745947075076,49.68240448,148.85,148.84,0.063]
[1745947075808,63.88240448,148.85,148.84,0.063]
[1745947075975,64.02456605,148.85,148.84,0.063]
[1745947076985,63.88240448,148.85,148.84,0.063]
[1745947077784,45.23275562,148.85,148.84,0.063]
[1745947078915,63.88240448,148.85,148.84,0.063]
[1745947081024,38.51458297,148.85,148.84,0.063]
[1745947081910,63.88240448,148.85,148.84,0.063]
[1745947084018,64.02456605,148.85,148.84,0.063]
[1745947087296,90.02456605,148.85,148.84,0.063]
[1745947088213,89.88240448,148.85,148.84,0.063]
[1745947090811,90.02456605,148.85,148.84,0.063]
[1745947091009,90.16672762,148.85,148.84,0.063]
[1745947091719,90.02456605,148.85,148.84,0.063]
[1745947091914,89.88240448,148.85,148.84,0.063]
[1745947096413,90.16672762,148.85,148.84,0.063]
[1745947096903,89.88240448,148.85,148.84,0.063]
[1745947098202,90.02456605,148.85,148.84,0.063]
[1745947100236,38.51458297,148.85,148.84,0.063]
[1745947101516,14.2,148.85,148.84,0.063]
[1745947101722,38.51458297,148.85,148.84,0.063]
[1745947103499,45.23275562,148.85,148.84,0.063]
[1745947103918,89.88240448,148.85,148.84,0.063]
[1745947104110,90.02456605,148.85,148.84,0.063]
[1745947104407,90.16672762,148.85,148.84,0.063]
[1745947109720,64.16672762,148.85,148.84,0.063]
[1745947111643,45.23275562,148.85,148.84,0.063]
[1745947111936,89.88240448,148.85,148.84,0.063]
[1745947112311,65.56782151,148.85,148.84,0.063]
[1745947112514,38.51458297,148.85,148.84,0.063]
[1745947112715,14.2,148.85,148.84,0.063]
[1745947112945,38.51458297,148.85,148.84,0.063]
[1745947113440,14.2,148.85,148.84,0.063]
[1745947113629,24.31458297,148.87,148.84,0.063]
[1745947113814,31.03197539,148.87,148.84,0.063]
[1745947114018,24.31458297,148.86,148.84,0.063]
[1745947114328,24.31458297,148.85,148.84,0.063]
[1745947114512,42.96423183,148.85,148.84,0.063]
[1745947115934,49.68240448,148.85,148.84,0.063]
[1745947117037,49.96672762,148.85,148.84,1e-08]
[1745947117829,74.28131059,148.85,148.84,1e-08]
[1745947120356,49.68240448,148.85,148.84,1e-08]
[1745947120533,57.12423183,148.85,148.84,1e-08]
[1745947121142,38.47458297,148.85,148.84,1e-08]
[1745947121349,24.31458297,148.85,148.84,1e-08]
[1745947121853,24.31458297,148.86,148.84,1e-08]
[1745947122924,24.31458297,148.88,148.84,24.31458298]
[1745947123343,38.47458297,148.89,148.85,24.31458297]
[1745947124024,38.47458297,148.89,148.86,5.02581235]
[1745947125126,38.47458297,148.89,148.85,24.31458297]
[1745947126829,24.31458297,148.88,148.85,24.31458297]
[1745947127233,24.31458297,148.87,148.84,24.31458298]
[1745947127446,20.87649783,148.89,148.84,1e-08]
[1745947127756,24.31458297,148.85,148.84,1e-08]
[1745947128130,42.96423183,148.85,148.84,1e-08]
[1745947128349,24.31458297,148.85,148.84,1e-08]
[1745947128526,42.96423183,148.86,148.84,1e-08]
[1745947129447,49.68226466,148.86,148.84,1e-08]
[1745947131047,24.31458297,148.87,148.84,1e-08]
[1745947131251,31.03194135,148.87,148.84,1e-08]
[1745947131931,24.31458297,148.86,148.84,1e-08]
[1745947132730,24.31458297,148.85,148.84,1e-08]
[1745947134954,24.31458297,148.85,148.84,1e-08]
[1745947135156,31.03275562,148.85,148.84,1e-08]
[1745947135968,49.68240448,148.85,148.84,1e-08]
[1745947136561,100.28131059,148.85,148.84,1e-08]
[1745947136748,75.96672762,148.85,148.84,1e-08]
[1745947137559,75.68240448,148.85,148.84,1e-08]
[1745947138557,44.64964886,148.82,148.81,0.063]
[1745947138762,107.4388148,148.82,148.81,0.063]
[1745947139956,114.15834174,148.82,148.81,0.063]
[1745947140161,114.30050331,148.82,148.81,0.063]
[1745947141357,89.84375877,148.82,148.81,0.063]
[1745947143264,6.71823113,148.85,148.81,0.063]
[1745947143439,24.31458297,148.84,148.81,0.063]
[1745947144463,24.31458297,148.85,148.81,24.37758297]
[1745947145056,18.64964886,148.89,148.84,24.31458297]
[1745947145251,24.31458297,148.88,148.84,24.31458297]
[1745947145642,24.31458297,148.87,148.83,24.31458297]
[1745947146754,24.31458297,148.86,148.82,24.31458297]
[1745947146954,24.31458297,148.86,148.82,0.28432314]
[1745947147165,24.31458297,148.86,148.82,24.59890611]
[1745947148065,24.31458297,148.87,148.83,24.31458297]
[1745947148265,24.31458297,148.86,148.82,24.59890611]
[1745947151750,24.31458297,148.83,148.81,0.063]
[1745947151957,24.31458297,148.82,148.81,0.063]
[1745947153561,31.03410991,148.82,148.81,0.063]
[1745947154053,49.68375877,148.82,148.81,0.063]
[1745947155356,73.99834174,148.82,148.81,0.063]
[1745947158966,74.14050331,148.82,148.81,0.063]
[1745947164400,73.99834174,148.82,148.81,0.063]
[1745947164685,49.68375877,148.82,148.81,0.063]
[1745947166364,18.64964886,148.84,148.81,0.063]
[1745947166565,24.31458297,148.83,148.81,0.063]
[1745947168185,20.85835601,148.85,148.81,0.063]
[1745947168397,14.14,148.85,148.82,24.31458297]
[1745947168690,24.31458297,148.87,148.83,24.31458297]
[1745947168984,49.68114778,148.88,148.84,24.31458297]
[1745947170372,24.31458297,148.88,148.84,24.31458297]
[1745947170865,71.17121525,148.89,148.85,24.31458297]
[1745947171770,40.14,148.89,148.85,24.31458297]
[1745947172361,64.45458297,148.89,148.85,24.31458297]
[1745947172563,24.31458297,148.88,148.84,24.59890611]
[1745947174094,46.85639105,148.89,148.84,24.59890611]
[1745947174095,64.45458297,148.89,148.85,24.31458297]
[1745947174381,40.14,148.89,148.86,24.31458297]
[1745947175087,0.03,148.9,148.87,24.31458297]
[1745947175283,0.03,148.9,148.88,24.31458297]
[1745947176870,0.03,148.9,148.89,24.31458297]
[1745947177768,0.03,148.9,148.88,24.31458297]
[1745947178895,0.03,148.9,148.89,24.31458297]
[1745947180905,0.03,148.9,148.88,24.31458297]
[1745947183701,0.03,148.9,148.88,15.16483256]
[1745947185080,0.03,148.9,148.89,15.16483256]
[1745947186005,0.03,148.9,148.88,15.16483256]
[1745947187477,0.03,148.9,148.84,0.56864628]
[1745947187478,15.19483256,148.9,148.84,0.56864628]
[1745947187678,15.16483256,148.89,148.85,15.16483256]
[1745947187912,15.16483256,148.88,148.84,15.16483256]
[1745947188583,21.88165732,148.88,148.84,15.16483256]
[1745947189306,0.03,148.9,148.84,15.16483256]
[1745947189307,21.88138048,148.89,148.85,15.16483256]
[1745947191213,15.16483256,148.86,148.81,21.48053256]
[1745947191374,15.16483256,148.86,148.81,15.22783256]
[1745947191579,15.16483256,148.85,148.81,15.22783256]
[1745947191906,32.74964886,148.88,148.81,0.063]
[1745947191907,15.16483256,148.84,148.81,0.063]
[1745947192295,21.88352364,148.84,148.81,0.063]
[1745947193586,24.29036928,148.84,148.81,0.063]
[1745947194981,31.00913398,148.84,148.81,0.063]
[1745947195186,24.29036928,148.82,148.81,0.063]
[1745947197018,49.65954508,148.82,148.81,0.063]
[1745947198812,73.94991436,148.82,148.81,0.063]
[1745947198987,75.62167593,148.82,148.81,0.063]
[1745947199814,51.18914508,148.82,148.81,0.063]
[1745947200821,42.94001814,148.82,148.81,0.063]
[1745947202106,20.81924775,148.83,148.81,0.063]
[1745947202107,38.39036928,148.83,148.81,0.063]
[1745947202425,45.10946192,148.83,148.81,0.063]
[1745947202598,24.29036928,148.82,148.81,0.063]
[1745947203622,14.1,148.83,148.81,0.063]
[1745947203996,24.29036928,148.84,148.81,0.063]
[1745947204421,49.65793387,148.86,148.81,24.35336928]
[1745947204599,49.65793387,148.86,148.82,24.29036928]
[1745947205007,49.65793387,148.86,148.81,24.35336928]
[1745947205216,24.29036928,148.85,148.81,24.35336928]
[1745947205414,24.29036928,148.84,148.81,0.063]
[1745947205620,24.29036928,148.82,148.81,0.063]
[1745947207111,49.65954508,148.82,148.81,0.063]
[1745947208927,63.73954508,148.82,148.81,0.063]
[1745947209803,88.02991436,148.82,148.81,0.063]
[1745947210205,63.73954508,148.82,148.81,0.063]
[1745947212217,88.02991436,148.82,148.81,0.063]
[1745947212417,63.73954508,148.82,148.81,0.063]
[1745947213933,54.64040291,148.82,148.81,0.063]
[1745947215117,47.92087597,148.82,148.81,0.063]
[1745947215318,14.08,148.82,148.81,0.063]
[1745947216224,47.90999481,148.84,148.81,0.063]
[1745947216422,15.19122711,148.83,148.81,0.063]
[1745947216825,33.84087597,148.84,148.81,0.063]
[1745947217649,42.94009549,148.82,148.81,0.063]
[1745947220814,24.29044663,148.84,148.81,0.063]
[1745947221116,24.29044663,148.83,148.81,0.063]
[1745947221320,24.29044663,148.82,148.81,0.063]
[1745947223021,24.29044663,148.84,148.81,0.063]
[1745947224040,24.29044663,148.83,148.81,0.063]
[1745947226147,25.36802666,148.85,148.81,0.063]